fUSD/lending_fUSD_20250520
["ID","MTS","AMOUNT","RATE_DAILY","PERIOD"]
[361711771,1747714240925,-1344.4063167,0.00011992,2]
[361711773,1747714240935,-1607.8672058,0.00011992,2]
[361711774,1747714240946,-1871.328095,0.00011992,2]
[361711775,1747714240956,-150.0,0.00011993,2]
[361711776,1747714240967,-150.0,0.00011993,2]
[361711777,1747714240978,-150.0,0.00011993,2]
[361711778,1747714240988,-500.0,0.00011993,2]
[361711779,1747714240999,-155.95611122,0.00011993,2]
[361711780,1747714241009,-113779.45666926,0.00011999,2]
[361711781,1747714241019,-184.74290436,0.00012,2]
[361711782,1747714241029,-715008.64966406,0.00012,2]
[361711783,1747714241039,-3989648.96678189,0.00012,2]
[361711784,1747714241053,-55543.07436588,0.00012,2]
[361711785,1747714241065,-4601.15,0.00012,2]
[361711786,1747714241084,-20270.30613503,0.00012,2]
[361711790,1747714243069,-562.6023957,0.00011931,2]
[361711791,1747714243280,-942.316296,0.00011931,2]
[361711798,1747714246052,-2540.0813083,0.00011931,2]
[361711799,1747714246062,-10793.47798604,0.00012,2]
[361711800,1747714246315,-2517147.97525263,0.00012,2]
[361711801,1747714246325,-9571.92827269,0.00012,2]
[361711802,1747714246369,-929.92843033,0.00012,2]
[361711803,1747714246379,-500.0,0.00012,2]
[361711804,1747714246391,-302.10643272,0.00012,2]
[361711805,1747714434848,150.0,0.00011715,7]
[361711806,1747714622958,176.98113208,0.000125,7]
[361711807,1747714628147,171.69811321,0.000125,7]
[361711808,1747714632909,152.92682927,0.000125,7]
[361711809,1747714637596,164.51219512,0.000125,7]
[361711811,1747715287202,200.0,0.0001105,2]
[361711812,1747715296665,2177.0,0.00027397,120]
[361711813,1747715305097,153.96,0.00011029,2]
[361711814,1747715305314,153.96,0.0001104,2]
[361711815,1747715305526,153.96,0.00011051,2]
[361711816,1747715305732,153.96,0.00011062,2]
[361711817,1747715305965,153.96,0.00011073,2]
[361711818,1747715306377,153.96,0.00011084,2]
[361711819,1747715327303,822.61341874,0.00027,120]
[361711821,1747715399319,166.52,0.00011026,2]
[361711822,1747715412206,203.0,0.00011061,2]
[361711823,1747715426049,666.19,0.00011032,2]
[361711831,1747715432147,-404.35360807,0.00011442,2]
[361711832,1747715432160,-456.26257393,0.00011442,2]
[361711833,1747715432169,-269.71,0.00011499,2]
[361711834,1747715432181,-250.0,0.0001153,2]
[361711835,1747715432197,-200.0,0.0001153,2]
[361711836,1747715432208,-125.96296903,0.00011619,2]
[361711837,1747715432233,-52.23703097,0.00011619,2]
[361711838,1747715432242,-225.60470513,0.00011667,2]
[361711839,1747715432258,-420.54461945,0.00011667,2]
[361711840,1747715432313,-353.85067542,0.00011667,2]
[361711841,1747715432323,-363.7665672,0.0001176,2]
[361711842,1747715432334,-250.0,0.00011821,2]
[361711843,1747715432347,-1200.0,0.00011824,2]
[361711844,1747715432358,-300.0,0.00011825,2]
[361711845,1747715432369,-300.0,0.00011825,2]
[361711846,1747715432380,-4061.52297159,0.00011826,2]
[361711847,1747715432477,-4492.01702841,0.00011826,2]
[361711849,1747715432486,-166.38,0.00011861,2]
[361711850,1747715432496,-157.10271811,0.000119,2]
[361711853,1747715432506,-207.4,0.00011985,2]
[361711854,1747715432516,-785.4,0.00011989,2]
[361711856,1747715432526,-15.07367943,0.0001199,2]
[361711864,1747715438708,-134.92632057,0.0001199,2]
[361711865,1747715438719,-1018.5333176,0.00011991,2]
[361711866,1747715438736,-3442.1418899,0.00011991,2]
[361711867,1747715438746,-355.798164,0.00011991,2]
[361711868,1747715438756,-16589.9884202,0.00011991,2]
[361711869,1747715438766,-1400.4011976,0.00011991,2]
[361711870,1747715438775,-325.738176,0.00011991,2]
[361711871,1747715438785,-3709.4470901,0.00011992,2]
[361711872,1747715438795,-2958.2189727,0.00011992,2]
[361711873,1747715438805,-2206.9908553,0.00011992,2]
[361711874,1747715438815,-355.798164,0.00011992,2]
[361711875,1747715438825,-355.798164,0.00011992,2]
[361711876,1747715438835,-355.798164,0.00011992,2]
[361711877,1747715438845,-13800.9468887,0.00011992,2]
[361711878,1747715438854,-11011.9053572,0.00011992,2]
[361711879,1747715438864,-8222.8638256,0.00011992,2]
[361711880,1747715438873,-5433.8222941,0.00011992,2]
[361711881,1747715438883,-2644.7807626,0.00011992,2]
[361711882,1747715438893,-1499.2530468,0.00011992,2]
[361711883,1747715438903,-1598.1048961,0.00011992,2]
[361711884,1747715438913,-1696.9567453,0.00011992,2]
[361711885,1747715438923,-1795.8085945,0.00011992,2]
[361711886,1747715438933,-1894.6604438,0.00011992,2]
[361711887,1747715438943,-347.2314312,0.00011992,2]
[361711888,1747715438952,-368.7246865,0.00011992,2]
[361711889,1747715438962,-390.2179417,0.00011992,2]
[361711890,1747715438977,-411.7111969,0.00011992,2]
[361711891,1747715438987,-433.2044521,0.00011992,2]
[361711892,1747715438997,-511.16382124,0.00011993,2]
[361711893,1747715439008,-668.65185757,0.00011993,2]
[361711894,1747715439018,-1000.0,0.00011999,2]
[361711895,1747715439028,-500.0,0.00011999,2]
[361711896,1747715439038,-500.0,0.00011999,2]
[361711897,1747715439048,-500.0,0.00011999,2]
[361711898,1747715439058,-500.0,0.00011999,2]
[361711899,1747715439068,-276.7327448,0.00011999,2]
[361711900,1747715439078,-500.0,0.00011999,2]
[361711901,1747715439094,-500.0,0.00011999,2]
[361711902,1747715439104,-500.0,0.00011999,2]
[361711903,1747715439115,-500.0,0.00011999,2]
[361711904,1747715439125,-500.0,0.00011999,2]
[361711905,1747715439135,-500.0,0.00011999,2]
[361711906,1747715439145,-500.0,0.00011999,2]
[361711907,1747715439155,-500.0,0.00011999,2]
[361711908,1747715439164,-500.0,0.00011999,2]
[361711909,1747715439174,-301.87598689,0.00012,2]
[361711910,1747715439185,-12720.38795544,0.00012,2]
[361711911,1747715439232,-869.33485334,0.00012,2]
[361711912,1747715439244,-868.774932,0.00012,2]
[361711913,1747715439658,-501.24299996,0.00012,2]
[361711915,1747715440292,-154.0,0.00011999,2]
[361711916,1747715440304,-793968.9505765,0.00012,2]
[361711917,1747715440318,-697.89356728,0.00012,2]
[361711918,1747715440328,-1000.0,0.00012,2]
[361711919,1747715440338,-1000.0,0.00012,2]
[361711920,1747715440350,-1000.0,0.00012,2]
[361711921,1747715440360,-1000.0,0.00012,2]
[361711922,1747715440372,-1000.0,0.00012,2]
[361711923,1747715440384,-1000.0,0.00012,2]
[361711924,1747715440395,-1000.0,0.00012,2]
[361711925,1747715440406,-1000.0,0.00012,2]
[361711926,1747715440419,-1000.0,0.00012,2]
[361711927,1747715440430,-151.94947312,0.00012,2]
[361711928,1747715440441,-1000.0,0.00012,2]
[361711929,1747715440452,-1000.0,0.00012,2]
[361711930,1747715440462,-1000.0,0.00012,2]
[361711931,1747715440472,-1000.0,0.00012,2]
[361711932,1747715440484,-1000.0,0.00012,2]
[361711933,1747715440495,-1000.0,0.00012,2]
[361711934,1747715440505,-1000.0,0.00012,2]
[361711935,1747715440515,-1000.0,0.00012,2]
[361711936,1747715440524,-1000.0,0.00012,2]
[361711937,1747715440534,-1000.0,0.00012,2]
[361711938,1747715440545,-1000.0,0.00012,2]
[361711939,1747715440555,-1000.0,0.00012,2]
[361711940,1747715440566,-1000.0,0.00012,2]
[361711941,1747715440576,-1000.0,0.00012,2]
[361711942,1747715440588,-1000.0,0.00012,2]
[361711943,1747715440598,-1000.0,0.00012,2]
[361711944,1747715440608,-1000.0,0.00012,2]
[361711945,1747715440619,-1000.0,0.00012,2]
[361711946,1747715440636,-1000.0,0.00012,2]
[361711947,1747715440647,-1000.0,0.00012,2]
[361711948,1747715440657,-1146.61601746,0.00012,2]
[361711949,1747715440669,-250.0,0.00012,2]
[361711950,1747715440680,-250.0,0.00012,2]
[361711951,1747715440690,-250.0,0.00012,2]
[361711952,1747715440700,-250.0,0.00012,2]
[361711953,1747715440709,-250.0,0.00012,2]
[361711954,1747715440720,-250.0,0.00012,2]
[361711955,1747715440731,-250.0,0.00012,2]
[361711956,1747715440741,-327.8,0.00012,2]
[361711957,1747715440751,-194.0,0.00012,3]
[361711958,1747715440761,-195.06,0.00012,3]
[361711959,1747715440771,-500.0,0.00012,2]
[361711960,1747715440781,-500.0,0.00012,2]
[361711961,1747715440791,-500.0,0.00012,2]
[361711962,1747715440802,-500.0,0.00012,2]
[361711963,1747715440812,-500.0,0.00012,2]
[361711964,1747715440823,-500.0,0.00012,2]
[361711965,1747715440834,-500.0,0.00012,2]
[361711966,1747715440844,-500.0,0.00012,2]
[361711967,1747715440856,-500.0,0.00012,2]
[361711968,1747715440867,-500.0,0.00012,2]
[361711969,1747715440879,-500.0,0.00012,2]
[361711970,1747715440889,-500.0,0.00012,2]
[361711971,1747715440900,-500.0,0.00012,2]
[361711972,1747715440910,-500.0,0.00012,2]
[361711973,1747715440921,-500.0,0.00012,2]
[361711974,1747715440931,-500.0,0.00012,2]
[361711975,1747715440943,-500.0,0.00012,2]
[361711976,1747715440954,-500.0,0.00012,2]
[361711977,1747715440964,-500.0,0.00012,2]
[361711978,1747715440978,-500.0,0.00012,2]
[361711979,1747715440988,-500.0,0.00012,2]
[361711980,1747715440998,-500.0,0.00012,2]
[361711981,1747715441007,-500.0,0.00012,2]
[361711982,1747715441018,-500.0,0.00012,2]
[361711983,1747715441028,-500.0,0.00012,2]
[361711984,1747715441039,-500.0,0.00012,2]
[361711985,1747715441049,-500.0,0.00012,2]
[361711986,1747715441059,-500.0,0.00012,2]
[361711987,1747715441070,-500.0,0.00012,2]
[361711988,1747715441086,-500.0,0.00012,2]
[361711989,1747715441098,-500.0,0.00012,2]
[361711990,1747715441110,-500.0,0.00012,2]
[361711991,1747715441121,-500.0,0.00012,2]
[361711992,1747715441131,-500.0,0.00012,2]
[361711993,1747715441141,-500.0,0.00012,2]
[361711994,1747715441152,-500.0,0.00012,2]
[361711995,1747715441162,-500.0,0.00012,2]
[361711996,1747715441173,-500.0,0.00012,2]
[361711997,1747715441183,-500.0,0.00012,2]
[361711998,1747715441194,-500.0,0.00012,2]
[361711999,1747715441206,-500.0,0.00012,2]
[361712000,1747715441217,-500.0,0.00012,2]
[361712001,1747715441231,-500.0,0.00012,2]
[361712002,1747715441242,-500.0,0.00012,2]
[361712003,1747715441252,-500.0,0.00012,2]
[361712004,1747715441263,-638.0,0.00012,2]
[361712005,1747715441274,-801.0,0.00012,2]
[361712006,1747715441284,-500.0,0.00012,2]
[361712007,1747715441294,-500.0,0.00012,2]
[361712008,1747715441307,-500.0,0.00012,2]
[361712009,1747715441318,-997.0,0.00012,2]
[361712010,1747715441329,-406.665,0.00012,2]
[361712011,1747715441341,-1279.041,0.00012,2]
[361712012,1747715441352,-920.0,0.00012,2]
[361712013,1747715441365,-395.005,0.00012,2]
[361712014,1747715441375,-554.0,0.00012,2]
[361712015,1747715441387,-1470.255,0.00012,2]
[361712016,1747715441399,-150.0,0.00012,2]
[361712017,1747715441411,-209.01665543,0.00012,2]
[361712018,1747715441423,-261.27747531,0.00012,2]
[361712019,1747715441435,-500.0,0.00012,2]
[361712020,1747715441449,-3844674.82958521,0.00012,2]
[361712021,1747715441478,-5748.44960129,0.00012,2]
[361712022,1747715441491,-2970.78962391,0.00012,2]
[361712023,1747715441503,-4079.82031271,0.00012,2]
[361712024,1747715441515,-913.76378646,0.00012,2]
[361712025,1747715441527,-919.39818052,0.00012,2]
[361712026,1747715441540,-764.745945,0.00012,2]
[361712028,1747715443244,-1231.63484721,0.000119,2]
[361712029,1747715443254,-1498.26301423,0.00012,2]
[361712030,1747715443270,-1380.18056297,0.00012,2]
[361712031,1747715443410,-459.06425279,0.00012,2]
[361712034,1747715446118,-7917.64319396,0.00012,2]
[361712035,1747715446131,-897.40698998,0.00012,2]
[361712036,1747715446228,-619.76020313,0.00012,2]
[361712037,1747715446288,-6561.53498233,0.00012,2]
[361712038,1747715446302,-103703.07176755,0.00012,2]
[361712039,1747715446316,-688.08525818,0.00012,2]
[361712040,1747715446329,-1873.14887,0.00012,2]
[361712041,1747715446402,-399.43,0.00012,2]
[361712042,1747715446415,-1116.14335463,0.00012,2]
[361712043,1747715446512,-935.29913666,0.00012,2]
[361712044,1747715446525,-2487.79861121,0.00012,2]
[361712045,1747715446538,-47352.93125225,0.00012,2]
[361712046,1747715446551,-5984.26936169,0.00012,2]
[361712049,1747715497367,150.0,0.00012023,7]
[361712050,1747715580983,276.24,0.00011186,2]
[361712051,1747715608256,-237.4997436,0.00011267,2]
[361712052,1747715611494,-12.5002564,0.00011267,2]
[361712053,1747715755539,477.83,9.297e-05,2]
[361712054,1747715820180,150.0,0.00011162,2]
[361712055,1747715831762,867.14,0.00011162,2]
[361712056,1747716020585,1000.0,0.00011107,2]
[361712057,1747716053170,-300.0,0.00011309,2]
[361712058,1747716053196,-1152.0,0.00011309,2]
[361712059,1747716053223,-200.0,0.00011309,2]
[361712060,1747716053248,-250.0,0.00011309,2]
[361712061,1747716053274,-23900.0,0.0001131,2]
[361712062,1747716053300,-200.0,0.0001145,2]
[361712063,1747716053327,-477.83,0.00011561,2]
[361712064,1747716053351,-442.9450887,0.0001176,2]
[361712065,1747716053377,-168.49277008,0.000119,2]
[361712066,1747716053401,-218.23113013,0.000119,2]
[361712067,1747716053426,-549.0,0.000119,2]
[361712068,1747716053450,-258.09881535,0.000119,2]
[361712069,1747716053477,-193.06799635,0.000119,2]
[361712070,1747716053501,-304.04614302,0.000119,2]
[361712071,1747716053527,-227.48055742,0.000119,2]
[361712072,1747716053554,-508.05217038,0.00011973,2]
[361712073,1747716053579,-503.16973193,0.00011973,2]
[361712074,1747716053604,-353.77712824,0.00011988,2]
[361712075,1747716053629,-1125.789,0.0001199,2]
[361712076,1747716053654,-177.285,0.0001199,2]
[361712077,1747716053679,-494.1320158,0.00011991,2]
[361712078,1747716053704,-711.59632832,0.00011991,2]
[361712079,1747716053731,-440.4990334,0.00011992,2]
[361712080,1747716053755,-386.8660509,0.00011992,2]
[361712081,1747716053780,-333.2330685,0.00011992,2]
[361712082,1747716053806,-279.6000861,0.00011992,2]
[361712083,1747716053830,-225.9671037,0.00011992,2]
[361712084,1747716053854,-207.4,0.00011993,2]
[361712085,1747716053878,-151.0,0.00011993,2]
[361712086,1747716053903,-221.27582536,0.00011993,2]
[361712087,1747716053927,-200.0,0.00011993,2]
[361712088,1747716053952,-668.65185757,0.00011993,2]
[361712089,1747716053976,-793.72591158,0.00011993,2]
[361712090,1747716054001,-151.0,0.00011993,2]
[361712091,1747716054031,-500.0,0.00011999,2]
[361712092,1747716054060,-500.0,0.00011999,2]
[361712093,1747716054088,-219.18790271,0.00011999,2]
[361712094,1747716054112,-268.07107598,0.00012,2]
[361712095,1747716054138,-48638.52820848,0.00012,2]
[361712097,1747716141369,205.67,0.00011196,2]
[361712098,1747716192375,2000.0,0.00011106,2]
[361712099,1747716201021,200.0,0.00011106,2]
[361712104,1747716310276,-225.82261425,0.00011233,2]
[361712105,1747716314073,-192.55856394,0.00011233,2]
[361712106,1747716318190,-15.69882181,0.00011233,2]
[361712109,1747716575568,150.0,0.000111,7]
[361712112,1747716632365,-164.93,0.00011428,2]
[361712113,1747716632375,-200.0,0.00011448,2]
[361712114,1747716632386,-250.0,0.00011468,2]
[361712115,1747716632396,-200.0,0.00011468,2]
[361712116,1747716632406,-677.58,0.00011507,2]
[361712117,1747716632416,-53.22815394,0.00011652,2]
[361712118,1747716632529,-146.77184606,0.00011652,2]
[361712119,1747716632540,-332.34673207,0.0001176,2]
[361712120,1747716632553,-88.45110223,0.0001176,2]
[361712121,1747716632563,-333.37427674,0.00011786,2]
[361712122,1747716632573,-545.44724561,0.000118,2]
[361712123,1747716632587,-516.64932665,0.000118,2]
[361712124,1747716632597,-3.21906476,0.00011843,2]
[361712125,1747716632613,-330.15521197,0.00011843,2]
[361712126,1747716632623,-778.66660663,0.00011899,2]
[361712127,1747716632636,-421.33339337,0.00011899,2]
[361712128,1747716632645,-300.0,0.00011899,2]
[361712129,1747716632656,-3.12291014,0.000119,2]
[361712130,1747716632670,-151.18776427,0.000119,2]
[361712131,1747716632683,-333.37427673,0.000119,2]
[361712132,1747716632692,-1434.2169,0.000119,2]
[361712133,1747716632702,-150.0,0.00011972,2]
[361712134,1747716632712,-501.3365779,0.00011973,2]
[361712135,1747716632722,-500.0,0.00011973,2]
[361712136,1747716632732,-164.24044436,0.00011973,2]
[361712137,1747716632747,-640.84235729,0.00011973,2]
[361712138,1747716632757,-500.77806271,0.00011973,2]
[361712140,1747716632768,-501.09475086,0.00011973,2]
[361712142,1747716632778,-500.0,0.00011973,2]
[361712144,1747716632787,-500.0,0.00011973,2]
[361712146,1747716632796,-500.0,0.00011973,2]
[361712148,1747716632805,-500.0,0.00011973,2]
[361712150,1747716632814,-545.91306056,0.00011973,2]
[361712153,1747716632824,-11135.55343015,0.0001199,2]
[361712168,1747716638282,-1225.13628013,0.0001199,2]
[361712169,1747716638292,-207.4,0.00011993,2]
[361712170,1747716638301,-500.0,0.00011999,2]
[361712171,1747716638311,-500.0,0.00011999,2]
[361712172,1747716638322,-437.36525,0.00011999,2]
[361712173,1747716638331,-507.30909622,0.00011999,2]
[361712176,1747716638681,-268.07107597,0.00012,2]
[361712178,1747716638691,-3246.09655377,0.00012,2]
[361712180,1747716638703,-764.71614827,0.00012,2]
[361712183,1747716638720,-436.21281963,0.00012,2]
[361712184,1747716638736,-2886.11746084,0.00012,2]
[361712185,1747716638752,-113083.81884928,0.00012,2]
[361712186,1747716638764,-103399.791279,0.00012,2]
[361712189,1747716640408,-340.56875052,0.000119,2]
[361712190,1747716640418,-650586.9241819,0.00012,2]
[361712191,1747716640428,-729476.64485679,0.00012,2]
[361712192,1747716640438,-3324438.2215611,0.00012,2]
[361712193,1747716640569,-967.07159406,0.00012,2]
[361712194,1747716640680,-3834.60464557,0.00012,2]
[361712195,1747716641488,-863.13544453,0.00012,2]
[361712196,1747716641505,-1002.20238065,0.00012,2]
[361712197,1747716641517,-815.44000002,0.00012,2]
[361712198,1747716641528,-2421.15000765,0.00012,2]
[361712199,1747716641540,-764.947,0.00012,2]
[361712200,1747716643385,-854.01624939,0.00012,2]
[361712201,1747716643397,-1707.54595519,0.00012,2]
[361712202,1747716643410,-1017.53862686,0.00012,2]
[361712203,1747716643422,-7450.2,0.00012,2]
[361712204,1747716643440,-784.16209695,0.00012,2]
[361712205,1747716643453,-7178.74776248,0.00012,2]
[361712206,1747716643496,-8267.26780342,0.00012,2]
[361712207,1747716643508,-12817.6468411,0.00012,2]
[361712208,1747716643522,-468.44186604,0.00012,2]
[361712209,1747716643533,-5376.445856,0.00012,2]
[361712210,1747716643608,-7502.35497776,0.00012,2]
[361712211,1747716643619,-8846.81198358,0.00012,2]
[361712212,1747716643630,-31361.92882946,0.00012,2]
[361712213,1747716643641,-556.3898016,0.00012,2]
[361712214,1747716643653,-727.93842349,0.00012,2]
[361712215,1747716643665,-841.09078813,0.00012,2]
[361712216,1747716643678,-735.915,0.00012,2]
[361712217,1747716643699,-1165.30404382,0.00012,2]
[361712218,1747716643710,-300.42878841,0.00012,2]
[361712219,1747716643723,-1121.145,0.00012,2]
[361712221,1747716643735,-6325.59750609,0.00012,2]
[361712222,1747716643753,-1302.7999999,0.00012,2]
[361712234,1747716646300,-2444.19499382,0.000119,2]
[361712235,1747716646311,-126870.91309045,0.00012,2]
[361712236,1747716646463,-669.0,0.00012,2]
[361712237,1747716646476,-4744.79967454,0.00012,2]
[361712238,1747716646488,-323.57617519,0.00012,2]
[361712239,1747716646522,-1068.31161863,0.00012,2]
[361712240,1747716646534,-282.78234949,0.00012,2]
[361712241,1747716646584,-645.12208,0.00012,2]
[361712242,1747716646595,-1484.73048015,0.00012,2]
[361712243,1747716646644,-470.17110742,0.00012,2]
[361712246,1747716761245,204.0,0.00011139,2]
[361712247,1747716847481,499.15,9.931e-05,2]
[361712248,1747716921435,150.0,0.00011159,2]
[361712249,1747717064530,1000.0,0.0001114,2]
[361712250,1747717076450,2000.0,0.0002739,120]
[361712251,1747717088930,2000.0,0.0002739,120]
[361712252,1747717099007,1321.233662,0.0002739,120]
[361712253,1747717213821,180.0,0.000112,2]
[361712254,1747717412493,-268.52820493,0.00011233,2]
[361712255,1747717419001,-252.76646538,0.00011233,2]
[361712256,1747717421048,-40.02532969,0.00011233,2]
[361712257,1747717619348,150.0,0.000111,7]
[361712261,1747717831624,-167.53,0.00011473,2]
[361712262,1747717831636,-250.0,0.00011544,2]
[361712263,1747717831646,-200.0,0.00011544,2]
[361712264,1747717831656,-200.0,0.00011616,2]
[361712265,1747717831667,-161.79008616,0.00011748,2]
[361712266,1747717831677,-477.6514225,0.0001176,2]
[361712267,1747717831687,-207.4,0.0001186,2]
[361712268,1747717831697,-23900.0,0.00011867,2]
[361712269,1747717831706,-3695.91,0.00011878,2]
[361712270,1747717831716,-2334.9466,0.000119,2]
[361712271,1747717831726,-268.9742871,0.000119,2]
[361712272,1747717831736,-218.88993375,0.000119,2]
[361712273,1747717831746,-801.0,0.0001192,2]
[361712274,1747717831756,-406.665,0.0001192,2]
[361712275,1747717831766,-395.005,0.0001192,2]
[361712276,1747717831775,-554.0,0.0001192,2]
[361712277,1747717831785,-920.0,0.0001192,2]
[361712278,1747717831794,-24.01240078,0.0001192,2]
[361712282,1747717832578,-1255.02859922,0.0001192,2]
[361712283,1747717832589,-1470.255,0.0001192,2]
[361712284,1747717832599,-3363.43438208,0.00011923,2]
[361712285,1747717832614,-644.99593829,0.00011923,2]
[361712287,1747717837691,-154.0,0.00011923,2]
[361712288,1747717837701,-757.478,0.00011923,2]
[361712289,1747717837712,-4045.0,0.00011923,2]
[361712290,1747717837722,-190.276,0.00011923,2]
[361712291,1747717837732,-500.6007246,0.00011973,2]
[361712292,1747717837741,-500.0,0.00011973,2]
[361712293,1747717837750,-501.47989314,0.00011973,2]
[361712294,1747717837759,-2103.709,0.00011991,2]
[361712295,1747717837769,-174.08,0.00011991,2]
[361712296,1747717837778,-153.00873093,0.00011993,2]
[361712297,1747717837788,-668.65185757,0.00011993,2]
[361712298,1747717837797,-185.02814921,0.00011999,2]
[361712299,1747717837807,-500.0,0.00011999,2]
[361712300,1747717837816,-412.67755498,0.00011999,2]
[361712301,1747717837825,-8411.66167197,0.00012,2]
[361712302,1747717837837,-413655.842916,0.00012,2]
[361712309,1747717839633,-4163463.31630665,0.00012,2]
[361712310,1747717839643,-66099.08899446,0.00012,2]
[361712311,1747717839653,-151.94947312,0.00012,2]
[361712312,1747717839663,-1000.0,0.00012,2]
[361712313,1747717839673,-1000.0,0.00012,2]
[361712314,1747717839682,-1000.0,0.00012,2]
[361712315,1747717839692,-1000.0,0.00012,2]
[361712316,1747717839701,-1000.0,0.00012,2]
[361712317,1747717839711,-1000.0,0.00012,2]
[361712318,1747717839720,-1000.0,0.00012,2]
[361712319,1747717839729,-1000.0,0.00012,2]
[361712320,1747717839738,-1000.0,0.00012,2]
[361712321,1747717839748,-1000.0,0.00012,2]
[361712322,1747717839757,-1000.0,0.00012,2]
[361712323,1747717839767,-1000.0,0.00012,2]
[361712324,1747717839776,-1000.0,0.00012,2]
[361712325,1747717839786,-1000.0,0.00012,2]
[361712326,1747717839795,-1000.0,0.00012,2]
[361712327,1747717839805,-1000.0,0.00012,2]
[361712328,1747717839815,-1000.0,0.00012,2]
[361712329,1747717839825,-1000.0,0.00012,2]
[361712330,1747717839835,-1000.0,0.00012,2]
[361712331,1747717839844,-1000.0,0.00012,2]
[361712332,1747717839853,-1000.0,0.00012,2]
[361712333,1747717839863,-1000.0,0.00012,2]
[361712334,1747717839874,-1000.0,0.00012,2]
[361712335,1747717839883,-1000.0,0.00012,2]
[361712336,1747717839892,-1000.0,0.00012,2]
[361712337,1747717839902,-1000.0,0.00012,2]
[361712338,1747717839911,-1000.0,0.00012,2]
[361712339,1747717839920,-1000.0,0.00012,2]
[361712340,1747717839930,-1000.0,0.00012,2]
[361712341,1747717839940,-1000.0,0.00012,2]
[361712342,1747717839951,-844.50958474,0.00012,2]
[361712343,1747717839962,-250.0,0.00012,2]
[361712344,1747717839971,-250.0,0.00012,2]
[361712345,1747717839981,-250.0,0.00012,2]
[361712346,1747717839990,-250.0,0.00012,2]
[361712347,1747717840001,-250.0,0.00012,2]
[361712348,1747717840011,-250.0,0.00012,2]
[361712349,1747717840020,-250.0,0.00012,2]
[361712350,1747717840029,-327.8,0.00012,2]
[361712351,1747717840039,-200.0,0.00012,2]
[361712352,1747717840050,-150.0,0.00012,2]
[361712353,1747717840060,-209.01665543,0.00012,2]
[361712354,1747717840070,-261.27747531,0.00012,2]
[361712355,1747717840079,-500.0,0.00012,2]
[361712356,1747717840089,-500.0,0.00012,2]
[361712357,1747717840099,-500.0,0.00012,2]
[361712358,1747717840108,-1340.0,0.00012,2]
[361712359,1747717840118,-689.0,0.00012,2]
[361712360,1747717840128,-200.00844346,0.00012027,2]
[361712361,1747717840137,-500.0,0.00012027,2]
[361712362,1747717840147,-500.0,0.00012027,2]
[361712363,1747717840157,-500.0,0.00012027,2]
[361712364,1747717840167,-689.0,0.00012027,2]
[361712365,1747717840177,-500.0,0.00012055,2]
[361712366,1747717840517,-468.2377355,0.00012055,2]
[361712367,1747717840530,-500.0,0.00012055,2]
[361712368,1747717840541,-689.0,0.00012055,2]
[361712369,1747717840551,-500.0,0.00012082,2]
[361712370,1747717840561,-500.0,0.00012082,2]
[361712371,1747717840571,-689.0,0.00012082,2]
[361712372,1747717840581,-236.41,0.00012091,2]